fUSD/lending_fUSD_20240616
["ID","MTS","AMOUNT","RATE_DAILY","PERIOD"]
[329620178,1718513469825,-500.0,0.00021917,2]
[329620179,1718513469873,-779.15,0.00021917,2]
[329620180,1718513469886,-836.43,0.00021917,2]
[329620181,1718513469923,-500.0,0.00021917,2]
[329620182,1718513469958,-1999.75,0.00021917,2]
[329620183,1718513469975,-581.77,0.00021917,2]
[329620184,1718513470012,-5509.3,0.00021917,2]
[329620185,1718513470037,-500.0,0.00021917,2]
[329620186,1718513470051,-3435.45,0.00021917,2]
[329620187,1718513470069,-512.68,0.00021917,2]
[329620188,1718513470104,-500.0,0.00021917,2]
[329620189,1718513470126,-500.0,0.00021917,2]
[329620190,1718513470145,-545.47,0.00021917,2]
[329620191,1718513470177,-500.0,0.00021917,2]
[329620192,1718513470194,-500.0,0.00021917,2]
[329620193,1718513470209,-500.0,0.00021917,2]
[329620194,1718513470224,-500.0,0.00021917,2]
[329620195,1718513470237,-1145.42,0.00021917,2]
[329620196,1718513470254,-500.0,0.00021917,2]
[329620197,1718513470272,-500.0,0.00021917,2]
[329620198,1718513470284,-500.0,0.00021917,2]
[329620199,1718513470314,-500.0,0.00021917,2]
[329620200,1718513470332,-779.36,0.00021917,2]
[329620201,1718513470346,-762.72,0.00021917,2]
[329620202,1718513470360,-500.0,0.00021917,2]
[329620203,1718513470404,-1150.79,0.00021917,2]
[329620204,1718513470421,-632.53,0.00021917,2]
[329620205,1718513470438,-500.0,0.00021917,2]
[329620206,1718513470450,-500.0,0.00021917,2]
[329620207,1718513470466,-1708.78,0.00021917,2]
[329620208,1718513470484,-500.0,0.00021917,2]
[329620209,1718513470503,-1978.8,0.00021917,2]
[329620210,1718513470525,-517.75464508,0.00021917,2]
[329620211,1718513470543,-681.06,0.00021917,2]
[329620212,1718513470580,-685.97,0.00021917,2]
[329620213,1718513470597,-602.52,0.00021917,2]
[329620214,1718513470612,-500.0,0.00021917,2]
[329620215,1718513470625,-500.0,0.00021917,2]
[329620216,1718513470646,-613.23,0.00021917,2]
[329620217,1718513470665,-1290.38,0.00021917,2]
[329620218,1718513470727,-500.0,0.00021917,2]
[329620219,1718513470766,-500.0,0.00021917,2]
[329620220,1718513470779,-500.0,0.00021917,2]
[329620221,1718513470804,-1373.83,0.00021917,2]
[329620222,1718513470851,-500.0,0.00021917,2]
[329620223,1718513470899,-500.0,0.00021917,2]
[329620224,1718513470924,-500.0,0.00021917,2]
[329620225,1718513470977,-678.63,0.00021917,2]
[329620226,1718513470989,-500.0,0.00021917,2]
[329620227,1718513471001,-500.0,0.00021917,2]
[329620228,1718513471034,-732.05,0.00021917,2]
[329620229,1718513471045,-1116.13,0.00021917,2]
[329620230,1718513471064,-500.0,0.00021917,2]
[329620231,1718513471086,-5202.12,0.00021917,2]
[329620232,1718513471102,-500.0,0.00021917,2]
[329620233,1718513471117,-783.34,0.00021917,2]
[329620234,1718513471129,-244.16,0.00021918,2]
[329620235,1718513471141,-250.0,0.00021918,2]
[329620236,1718513471171,-895.32,0.00021918,2]
[329620237,1718513471189,-150.0,0.00021919,2]
[329620238,1718513471200,-968.59,0.00021919,2]
[329620239,1718513471216,-150.0,0.0002192,2]
[329620240,1718513471233,-150.0,0.00021925,2]
[329620241,1718513471243,-150.0,0.00021928,2]
[329620242,1718513471254,-150.0,0.00021929,2]
[329620243,1718513471265,-2373.0,0.00021929,2]
[329620244,1718513471277,-150.0,0.00021934,2]
[329620245,1718513471294,-150.0,0.00021935,2]
[329620246,1718513471320,-150.0,0.00021937,2]
[329620247,1718513471336,-150.0,0.00021939,2]
[329620248,1718513471346,-150.0,0.00021943,2]
[329620249,1718513471372,-150.0,0.00021947,2]
[329620250,1718513471389,-150.0,0.0002195,2]
[329620251,1718513471399,-150.0,0.0002195,2]
[329620252,1718513471414,-150.0,0.00021951,2]
[329620253,1718513471425,-150.0,0.00021952,2]
[329620254,1718513471438,-150.0,0.00021953,2]
[329620255,1718513471449,-150.0,0.00021953,2]
[329620256,1718513471466,-150.0,0.00021956,2]
[329620257,1718513471477,-150.0,0.00021959,2]
[329620258,1718513471487,-150.0,0.00021959,2]
[329620259,1718513471498,-150.0,0.00021968,2]
[329620260,1718513471509,-1073.60024464,0.00021969,3]
[329620261,1718513471520,-150.0,0.0002197,2]
[329620262,1718513471531,-150.0,0.00021971,2]
[329620263,1718513471544,-150.0,0.00021972,2]
[329620264,1718513471556,-150.0,0.00021974,2]
[329620265,1718513471582,-150.0,0.00021988,2]
[329620266,1718513471594,-177.26,0.00021989,2]
[329620267,1718513471609,-150.0,0.00021991,2]
[329620268,1718513471696,-150.0,0.00021991,2]
[329620269,1718513471721,-150.0,0.00021993,2]
[329620270,1718513471745,-150.0,0.00021993,2]
[329620271,1718513471759,-150.0,0.00021994,2]
[329620272,1718513471786,-150.0,0.00021995,2]
[329620273,1718513471797,-150.0,0.00021996,2]
[329620274,1718513471809,-791.61101714,0.00022,2]
[329620275,1718513471836,-2242.0,0.00022,2]
[329620276,1718513471847,-1000.0,0.00022,3]
[329620277,1718513471861,-1000.0,0.00022,3]
[329620278,1718513471874,-2612.3526398,0.00022,2]
[329620279,1718513471903,-2612.3526398,0.00022,2]
[329620280,1718513471915,-2612.3526398,0.00022,2]
[329620281,1718513471930,-2612.3526398,0.00022,2]
[329620282,1718513471944,-2612.3526398,0.00022,2]
[329620283,1718513471968,-2612.3526398,0.00022,2]
[329620284,1718513471983,-2612.3526398,0.00022,2]
[329620285,1718513472016,-2612.3526398,0.00022,2]
[329620286,1718513472028,-2612.3526398,0.00022,2]
[329620287,1718513472060,-2612.3526398,0.00022,2]
[329620288,1718513472071,-2612.3526398,0.00022,2]
[329620289,1718513472088,-2612.3526398,0.00022,2]
[329620290,1718513472100,-2612.3526398,0.00022,2]
[329620291,1718513472111,-2612.3526398,0.00022,2]
[329620292,1718513472122,-2612.3526398,0.00022,2]
[329620293,1718513472134,-2612.3526398,0.00022,2]
[329620294,1718513472151,-2612.3526398,0.00022,2]
[329620295,1718513472177,-2612.3526398,0.00022,2]
[329620296,1718513472189,-2612.3526398,0.00022,2]
[329620297,1718513472207,-2612.3526398,0.00022,2]
[329620298,1718513472218,-2612.3526398,0.00022,2]
[329620299,1718513472231,-2612.3526398,0.00022,2]
[329620300,1718513472251,-2612.3526398,0.00022,2]
[329620301,1718513472272,-2612.3526398,0.00022,2]
[329620302,1718513472289,-2612.3526398,0.00022,2]
[329620303,1718513472300,-2612.3526398,0.00022,2]
[329620304,1718513472318,-2612.3526398,0.00022,2]
[329620305,1718513472337,-2612.3526398,0.00022,2]
[329620306,1718513472380,-2612.3526398,0.00022,2]
[329620307,1718513472684,-2612.3526398,0.00022,2]
[329620308,1718513472707,-2612.3526398,0.00022,2]
[329620309,1718513472723,-2612.3526398,0.00022,2]
[329620310,1718513472745,-2612.3526398,0.00022,2]
[329620311,1718513472771,-2612.3526398,0.00022,2]
[329620312,1718513472795,-2612.3526398,0.00022,2]
[329620313,1718513472808,-2612.3526398,0.00022,2]
[329620314,1718513472847,-2612.3526398,0.00022,2]
[329620315,1718513472887,-2612.3526398,0.00022,2]
[329620316,1718513472929,-2612.3526398,0.00022,2]
[329620317,1718513472946,-2612.3526398,0.00022,2]
[329620318,1718513472960,-2612.3526398,0.00022,2]
[329620319,1718513472983,-2612.3526398,0.00022,2]
[329620320,1718513473016,-2612.3526398,0.00022,2]
[329620321,1718513473048,-2612.3526398,0.00022,2]
[329620322,1718513473062,-2612.3526398,0.00022,2]
[329620323,1718513473081,-2612.3526398,0.00022,2]
[329620324,1718513473103,-2612.3526398,0.00022,2]
[329620325,1718513473131,-2612.3526398,0.00022,2]
[329620326,1718513473173,-2612.3526398,0.00022,2]
[329620327,1718513473193,-2612.3526398,0.00022,2]
[329620328,1718513473213,-2612.3526398,0.00022,2]
[329620329,1718513473224,-2612.3526398,0.00022,2]
[329620330,1718513473238,-2612.3526398,0.00022,2]
[329620331,1718513473272,-2612.3526398,0.00022,2]
[329620332,1718513473324,-2612.3526398,0.00022,2]
[329620333,1718513473362,-2612.3526398,0.00022,2]
[329620334,1718513473419,-2612.3526398,0.00022,2]
[329620335,1718513473461,-2612.3526398,0.00022,2]
[329620336,1718513473478,-2612.3526398,0.00022,2]
[329620337,1718513473505,-2612.3526398,0.00022,2]
[329620338,1718513473521,-2612.3526398,0.00022,2]
[329620339,1718513473552,-2612.3526398,0.00022,2]
[329620340,1718513473580,-2612.3526398,0.00022,2]
[329620341,1718513473610,-2612.3526398,0.00022,2]
[329620342,1718513473632,-2612.3526398,0.00022,2]
[329620343,1718513473656,-2612.3526398,0.00022,2]
[329620344,1718513473712,-2612.3526398,0.00022,2]
[329620345,1718513473738,-2612.3526398,0.00022,2]
[329620346,1718513473793,-2612.3526398,0.00022,2]
[329620347,1718513473844,-2612.3526398,0.00022,2]
[329620348,1718513473868,-2612.3526398,0.00022,2]
[329620349,1718513473892,-2612.3526398,0.00022,2]
[329620350,1718513473916,-2612.3526398,0.00022,2]
[329620351,1718513473927,-2612.3526398,0.00022,2]
[329620352,1718513473956,-2612.3526398,0.00022,2]
[329620353,1718513473970,-2612.3526398,0.00022,2]
[329620354,1718513473985,-2612.3526398,0.00022,2]
[329620355,1718513474004,-2612.3526398,0.00022,2]
[329620356,1718513474015,-2612.3526398,0.00022,2]
[329620357,1718513474028,-2612.3526398,0.00022,2]
[329620358,1718513474045,-2612.3526398,0.00022,2]
[329620359,1718513474064,-2612.3526398,0.00022,2]
[329620360,1718513474081,-2612.3526398,0.00022,2]
[329620361,1718513474092,-2612.3526398,0.00022,2]
[329620362,1718513474105,-2612.3526398,0.00022,2]
[329620363,1718513474125,-2612.3526398,0.00022,2]
[329620364,1718513474140,-2612.3526398,0.00022,2]
[329620365,1718513474162,-2612.3526398,0.00022,2]
[329620366,1718513474204,-2612.3526398,0.00022,2]
[329620367,1718513474254,-2612.3526398,0.00022,2]
[329620368,1718513474270,-2612.3526398,0.00022,2]
[329620369,1718513474281,-2612.3526398,0.00022,2]
[329620370,1718513474295,-2612.3526398,0.00022,2]
[329620371,1718513474341,-2612.3526398,0.00022,2]
[329620372,1718513474354,-2612.3526398,0.00022,2]
[329620373,1718513474376,-2612.3526398,0.00022,2]
[329620374,1718513474387,-2612.3526398,0.00022,2]
[329620375,1718513474406,-2612.3526398,0.00022,2]
[329620376,1718513474438,-2612.3526398,0.00022,2]
[329620377,1718513474455,-2612.3526398,0.00022,2]
[329620378,1718513474468,-150.0,0.00022006,2]
[329620379,1718513474481,-150.0,0.00022007,2]
[329620380,1718513474497,-150.0,0.00022012,2]
[329620381,1718513474511,-200.0,0.00022013,2]
[329620382,1718513474536,-500.0,0.00022013,2]
[329620383,1718513474548,-500.0,0.00022013,2]
[329620384,1718513474576,-150.0,0.00022013,2]
[329620385,1718513474626,-200.0,0.00022014,2]
[329620386,1718513474659,-500.0,0.00022014,2]
[329620387,1718513474672,-500.0,0.00022014,2]
[329620388,1718513474686,-200.0,0.00022014,2]
[329620389,1718513474704,-150.0,0.00022015,2]
[329620390,1718513474715,-150.0,0.00022015,2]
[329620391,1718513474727,-150.0,0.00022017,2]
[329620392,1718513474740,-150.0,0.0002202,2]
[329620393,1718513474760,-150.0,0.00022024,2]
[329620394,1718513474773,-150.0,0.00022027,2]
[329620395,1718513474789,-150.0,0.00022029,2]
[329620396,1718513474809,-1500.0,0.0002203,2]
[329620397,1718513474861,-150.0,0.00022034,2]
[329620398,1718513474880,-150.0,0.00022036,2]
[329620399,1718513474932,-150.0,0.00022036,2]
[329620400,1718513474948,-150.0,0.00022042,2]
[329620401,1718513474965,-150.0,0.00022044,2]
[329620402,1718513474979,-150.0,0.0002205,2]
[329620403,1718513474992,-150.0,0.00022054,2]
[329620404,1718513475005,-150.0,0.00022055,2]
[329620405,1718513475016,-150.0,0.00022058,2]
[329620406,1718513475030,-150.0,0.0002206,2]
[329620407,1718513475049,-150.0,0.00022061,2]
[329620408,1718513475074,-150.0,0.00022061,2]
[329620409,1718513475094,-1500.0,0.00022061,2]
[329620410,1718513475107,-150.0,0.00022062,2]
[329620411,1718513475126,-150.0,0.00022063,2]
[329620412,1718513475149,-150.0,0.00022063,2]
[329620413,1718513475167,-150.0,0.00022063,2]
[329620414,1718513475189,-150.0,0.00022064,2]
[329620415,1718513475207,-150.0,0.00022068,2]
[329620416,1718513475236,-150.0,0.0002207,2]
[329620417,1718513475250,-150.0,0.00022073,2]
[329620418,1718513475266,-150.0,0.00022079,2]
[329620419,1718513475295,-150.0,0.00022079,2]
[329620420,1718513475319,-150.0,0.00022082,2]
[329620421,1718513475349,-150.0,0.00022083,2]
[329620422,1718513475361,-183.70473489,0.00022084,2]
[329620423,1718513475378,-10151.39185388,0.00022084,2]
[329620424,1718513475396,-150.0,0.00022086,2]
[329620425,1718513475416,-150.0,0.00022087,2]
[329620426,1718513475440,-194.90256893,0.00022091,2]
[329620427,1718513475455,-150.0,0.00022091,2]
[329620428,1718513475471,-207.61017315,0.00022091,2]
[329620429,1718513475502,-477.16715486,0.00022091,2]
[329620430,1718513475517,-2335.64122054,0.00022091,2]
[329620431,1718513475532,-150.0,0.00022094,2]
[329620432,1718513475550,-150.0,0.00022094,2]
[329620433,1718513475569,-150.0,0.00022098,2]
[329620434,1718513475592,-237.0,0.000221,4]
[329620435,1718513475603,-291.0,0.000221,2]
[329620436,1718513475615,-150.0,0.000221,2]
[329620437,1718513475627,-1000.0,0.000221,2]
[329620438,1718513475642,-224.0,0.000221,2]
[329620439,1718513475653,-355.0,0.000221,2]
[329620440,1718513475665,-150.0,0.000221,3]
[329620441,1718513475678,-150.0,0.000221,3]
[329620442,1718513475694,-150.0,0.00022103,2]
[329620443,1718513475727,-150.0,0.00022103,2]
[329620444,1718513475742,-150.0,0.00022107,2]
[329620445,1718513475755,-150.0,0.00022111,2]
[329620446,1718513475768,-150.0,0.00022113,2]
[329620447,1718513475804,-150.0,0.00022115,2]
[329620448,1718513475832,-150.0,0.00022119,2]
[329620449,1718513475873,-1500.0,0.00022128,2]
[329620450,1718513475898,-150.0,0.00022131,2]
[329620451,1718513475917,-150.0,0.00022132,2]
[329620452,1718513475935,-182.36872346,0.00022139,2]
[329620453,1718513475976,-221.0,0.0002214,2]
[329620454,1718513475988,-216.0,0.0002214,2]
[329620455,1718513476002,-150.0,0.0002214,2]
[329620456,1718513476029,-150.0,0.00022142,2]
[329620457,1718513476042,-150.0,0.00022142,2]
[329620458,1718513476054,-1702.78,0.00022142,2]
[329620459,1718513476087,-1701.13,0.00022142,2]
[329620460,1718513476099,-150.0,0.00022151,2]
[329620461,1718513476111,-150.0,0.00022153,2]
[329620462,1718513476143,-150.0,0.00022157,2]
[329620463,1718513476168,-150.0,0.00022163,2]
[329620464,1718513476188,-150.0,0.00022164,2]
[329620465,1718513476200,-150.0,0.00022165,2]
[329620466,1718513476213,-150.0,0.00022172,2]
[329620467,1718513476227,-150.0,0.00022175,2]
[329620468,1718513476241,-484.557572,0.00022176,2]
[329620469,1718513476253,-150.0,0.00022178,2]
[329620470,1718513476270,-150.0,0.00022178,2]
[329620471,1718513476300,-162.200319,0.00022182,2]
[329620472,1718513476313,-24177.672525,0.00022182,2]
[329620473,1718513476329,-3467.5446689,0.00022182,2]
[329620474,1718513476344,-796.96,0.00022183,3]
[329620475,1718513476357,-306976.39912148,0.00022184,2]
[329620476,1718513476389,-1058.88866154,0.00022184,2]
[329620477,1718513476401,-500.0,0.00022184,3]
[329620478,1718513476417,-2102.9085913,0.00022185,2]
[329620479,1718513476429,-19825.5652985,0.00022185,2]
[329620480,1718513476441,-4815.118986,0.00022185,2]
[329620481,1718513476457,-150.0,0.00022186,2]
[329620482,1718513476476,-150.0,0.00022186,2]
[329620483,1718513476503,-151.0,0.00022187,2]
[329620484,1718513476522,-150.0,0.00022188,2]
[329620485,1718513476538,-212.83795322,0.0002219,2]
[329620486,1718513476555,-598.04407477,0.0002219,2]
[329620487,1718513476567,-500.0,0.0002219,3]
[329620488,1718513476579,-500.0,0.0002219,3]
[329620489,1718513476593,-796.96,0.0002219,3]
[329620490,1718513476603,-796.96,0.0002219,3]
[329620491,1718513476614,-796.96,0.0002219,3]
[329620492,1718513476630,-163323.71456622,0.00022191,13]
[329620493,1718513476655,-509.26364645,0.00022191,3]
[329620494,1718513476666,-501.39594049,0.00022191,3]
[329620495,1718513476683,-507.86629849,0.00022191,3]
[329620496,1718513476695,-402.3553141,0.00022191,3]
[329620497,1718513476720,-514.46073792,0.00022191,3]
[329620498,1718513476732,-500.0,0.00022191,3]
[329620499,1718513476743,-502.2619914,0.00022191,3]
[329620500,1718513476771,-497.73559253,0.00022191,3]
[329620501,1718513476799,-521.55408793,0.00022191,3]
[329620502,1718513476812,-500.0,0.00022191,3]
[329620503,1718513476834,-500.81033353,0.00022191,3]
[329620504,1718513476845,-500.0,0.00022191,3]
[329620505,1718513476859,-513.25642018,0.00022191,3]
[329620506,1718513476901,-500.0,0.00022191,3]
[329620507,1718513476915,-500.0,0.00022191,3]
[329620508,1718513476929,-500.0,0.00022191,3]
[329620509,1718513476942,-500.0,0.00022191,3]
[329620510,1718513476970,-545.38,0.00022191,3]
[329620511,1718513476985,-500.0,0.00022191,3]
[329620512,1718513476997,-500.0,0.00022191,3]
[329620513,1718513477020,-500.0,0.00022191,3]
[329620514,1718513477039,-500.0,0.00022191,3]
[329620515,1718513477051,-500.0,0.00022191,3]
[329620516,1718513477063,-500.0,0.00022191,3]
[329620517,1718513477075,-500.0,0.00022191,3]
[329620518,1718513477095,-500.0,0.00022191,3]
[329620519,1718513477121,-887.24,0.00022191,3]
[329620520,1718513477133,-500.0,0.00022191,3]
[329620521,1718513477163,-500.0,0.00022191,3]
[329620522,1718513477176,-500.0,0.00022191,3]
[329620523,1718513477190,-500.0,0.00022191,3]
[329620524,1718513477202,-500.0,0.00022191,3]
[329620525,1718513477216,-507.74022677,0.00022191,3]
[329620526,1718513477227,-500.0,0.00022191,3]
[329620527,1718513477242,-500.0,0.00022191,3]
[329620528,1718513477261,-500.0,0.00022191,3]
[329620529,1718513477273,-500.0,0.00022191,3]
[329620530,1718513477294,-500.0,0.00022191,3]
[329620531,1718513477318,-500.0,0.00022191,3]
[329620532,1718513477340,-500.0,0.00022191,3]
[329620533,1718513477358,-500.0,0.00022191,3]
[329620534,1718513477380,-500.0,0.00022191,3]
[329620535,1718513477400,-500.0,0.00022191,3]
[329620536,1718513477414,-500.0,0.00022191,3]
[329620537,1718513477445,-500.0,0.00022191,3]
[329620538,1718513477457,-500.0,0.00022191,3]
[329620539,1718513477470,-500.0,0.00022191,3]
[329620540,1718513477485,-500.0,0.00022191,3]
[329620541,1718513477503,-500.0,0.00022191,3]
[329620542,1718513477522,-500.0,0.00022191,3]
[329620543,1718513477541,-500.0,0.00022191,3]
[329620544,1718513477552,-500.0,0.00022191,3]
[329620545,1718513477643,-500.0,0.00022191,3]
[329620546,1718513477676,-500.0,0.00022191,3]
[329620547,1718513477702,-500.0,0.00022191,3]
[329620548,1718513477717,-500.0,0.00022191,3]
[329620549,1718513477737,-533.10081388,0.00022191,3]
[329620550,1718513477748,-500.0,0.00022191,3]
[329620551,1718513477760,-500.0,0.00022191,3]
[329620552,1718513477782,-500.0,0.00022191,3]
[329620553,1718513477813,-500.0,0.00022191,3]
[329620554,1718513477837,-500.0,0.00022191,3]
[329620555,1718513477849,-500.0,0.00022191,3]
[329620556,1718513477877,-500.0,0.00022191,3]
[329620557,1718513477888,-500.0,0.00022191,3]
[329620558,1718513477918,-500.0,0.00022191,3]
[329620559,1718513477935,-500.0,0.00022191,3]
[329620560,1718513477947,-518.25,0.00022191,3]
[329620561,1718513477964,-500.0,0.00022191,3]
[329620562,1718513477984,-500.0,0.00022191,3]
[329620563,1718513478001,-500.0,0.00022191,3]
[329620564,1718513478014,-500.0,0.00022191,3]
[329620565,1718513478026,-514.07915586,0.00022191,3]
[329620566,1718513478069,-500.0,0.00022191,3]
[329620567,1718513478081,-500.0,0.00022191,3]
[329620568,1718513478093,-500.0,0.00022191,3]
[329620569,1718513478105,-500.0,0.00022191,3]
[329620570,1718513478117,-500.0,0.00022191,3]
[329620571,1718513478136,-500.0,0.00022191,3]
[329620572,1718513478147,-500.0,0.00022191,3]
[329620573,1718513478158,-500.0,0.00022191,3]
[329620574,1718513478169,-516.00136791,0.00022191,3]
[329620575,1718513478181,-500.0,0.00022191,3]
[329620576,1718513478198,-733.91,0.00022191,3]
[329620577,1718513478227,-500.0,0.00022191,3]
[329620578,1718513478240,-500.0,0.00022191,3]
[329620579,1718513478287,-516.14399049,0.00022191,3]
[329620580,1718513478301,-500.0,0.00022191,3]
[329620581,1718513478311,-500.0,0.00022191,3]
[329620582,1718513478322,-500.0,0.00022191,3]
[329620583,1718513478334,-500.0,0.00022191,3]
[329620584,1718513478361,-500.0,0.00022191,3]
[329620585,1718513478373,-500.0,0.00022191,3]
[329620586,1718513478396,-500.0,0.00022191,3]
[329620587,1718513478408,-500.0,0.00022191,3]
[329620588,1718513478436,-500.0,0.00022191,3]
[329620589,1718513478462,-500.0,0.00022191,3]
[329620590,1718513478473,-500.0,0.00022191,3]
[329620591,1718513478485,-500.0,0.00022191,3]
[329620592,1718513478500,-500.0,0.00022191,3]
[329620593,1718513478512,-638.86492325,0.00022191,3]
[329620594,1718513478565,-500.0,0.00022191,3]
[329620595,1718513478592,-500.0,0.00022191,3]
[329620596,1718513478603,-500.0,0.00022191,3]
[329620597,1718513478617,-500.0,0.00022191,3]
[329620598,1718513478629,-500.0,0.00022191,3]
[329620599,1718513478655,-500.0,0.00022191,3]
[329620600,1718513478668,-500.0,0.00022191,3]
[329620601,1718513478681,-211.95093269,0.00022191,3]
[329620602,1718513478695,-500.0,0.00022191,3]
[329620603,1718513478707,-500.0,0.00022191,3]
[329620604,1718513478722,-500.0,0.00022191,3]
[329620605,1718513478734,-500.0,0.00022191,3]
[329620606,1718513478750,-500.0,0.00022191,3]
[329620607,1718513478766,-500.0,0.00022191,3]
[329620608,1718513478778,-500.0,0.00022191,3]
[329620609,1718513478794,-500.0,0.00022191,3]
[329620610,1718513478806,-701.92,0.00022191,3]
[329620611,1718513478870,-500.0,0.00022191,3]
[329620612,1718513478904,-500.0,0.00022191,3]
[329620613,1718513478915,-500.0,0.00022191,3]
[329620614,1718513478927,-500.0,0.00022191,3]
[329620615,1718513478938,-500.0,0.00022191,3]
[329620616,1718513478949,-592.49,0.00022191,3]
[329620617,1718513478961,-531.9,0.00022191,3]
[329620618,1718513478988,-500.0,0.00022191,3]
[329620619,1718513478998,-546.84,0.00022191,3]
[329620620,1718513479009,-500.0,0.00022191,3]
[329620621,1718513479019,-500.0,0.00022191,3]
[329620622,1718513479030,-500.0,0.00022191,3]
[329620623,1718513479045,-500.0,0.00022191,3]
[329620624,1718513479061,-500.0,0.00022191,3]
[329620625,1718513479106,-507.59,0.00022191,3]
[329620626,1718513479118,-500.0,0.00022191,3]
[329620627,1718513479131,-500.0,0.00022191,3]
[329620628,1718513479151,-510.77547269,0.00022191,3]
[329620629,1718513479177,-500.0,0.00022191,3]
[329620630,1718513479211,-500.0,0.00022191,3]
[329620631,1718513479231,-500.0,0.00022191,3]
[329620632,1718513479281,-500.0,0.00022191,3]
[329620633,1718513479293,-500.0,0.00022191,3]
[329620634,1718513479311,-500.0,0.00022191,3]
[329620635,1718513479340,-500.0,0.00022191,3]
[329620636,1718513479380,-519.79082604,0.00022191,3]
[329620637,1718513479412,-500.0,0.00022191,3]
[329620638,1718513479424,-500.0,0.00022191,3]
[329620639,1718513479435,-500.0,0.00022191,3]
[329620640,1718513479451,-500.0,0.00022191,3]
[329620641,1718513479462,-500.0,0.00022191,3]
[329620642,1718513479478,-245.12273116,0.00022191,3]
[329620643,1718513479492,-513.1079719,0.00022191,3]
[329620644,1718513479503,-500.0,0.00022191,3]
[329620645,1718513479513,-511.14521995,0.00022191,3]
[329620646,1718513479544,-517.9234443,0.00022191,3]
[329620647,1718513479555,-500.0,0.00022191,3]
[329620648,1718513479566,-572.32,0.00022191,3]
[329620649,1718513479577,-560.24290132,0.00022191,3]
[329620650,1718513479590,-500.0,0.00022191,3]
[329620651,1718513479608,-917.74,0.00022191,3]
[329620652,1718513479637,-412.04419255,0.00022191,3]
[329620653,1718513479661,-500.0,0.00022191,3]
[329620654,1718513479681,-500.0,0.00022191,3]
[329620655,1718513479709,-526.22,0.00022191,3]
[329620656,1718513479720,-532.49,0.00022191,3]
[329620657,1718513479731,-500.0,0.00022191,3]
[329620658,1718513479756,-500.0,0.00022191,3]
[329620659,1718513479772,-500.0,0.00022191,3]
[329620660,1718513479791,-600.77,0.00022191,3]
[329620661,1718513479802,-500.0,0.00022191,3]
[329620662,1718513479823,-500.0,0.00022191,3]
[329620663,1718513479840,-500.0,0.00022191,3]
[329620664,1718513479857,-500.0,0.00022191,3]
[329620665,1718513479880,-500.0,0.00022191,3]
[329620666,1718513479891,-510.61373572,0.00022191,3]
[329620667,1718513479905,-500.0,0.00022191,3]
[329620668,1718513479930,-500.0,0.00022191,3]
[329620669,1718513479942,-500.0,0.00022191,3]
[329620670,1718513479956,-515.72095778,0.00022191,3]
[329620671,1718513479980,-634.41,0.00022191,3]
[329620672,1718513479998,-500.0,0.00022191,3]
[329620673,1718513480025,-500.0,0.00022191,3]
[329620674,1718513480045,-558.45,0.00022191,3]
[329620675,1718513480065,-511.28506639,0.00022191,3]
[329620676,1718513480078,-500.0,0.00022191,3]
[329620677,1718513480104,-500.0,0.00022191,3]